[Event "Lueneburg Open-A 2019"]
[Site "Lueneburg"]
[Date "2019.08.11"]
[Round "9.34"]
[White "Ploder, Udo"]
[Black "Melzer, Marcel"]
[Result "0-1"]
[ECO "B33"]
[WhiteElo "1942"]
[BlackElo "1843"]
[Annotator "NA"]
[PlyCount "84"]
[EventDate "2019.08.03"]
[EventType "swiss"]
[EventCountry "GER"]
[SourceTitle "playchess.com"]
[Source "ChessBase"]
[SourceQuality "1"]
[TimeControl "40/5400+30:1800+30"]

1. e4 {[%emt 0:00:00]} c5 {[%emt 0:00:00]} 2. Nf3 {[%emt 0:00:00]} Nc6 {[%emt 0:00:00]} 3. d4 {[%emt 0:00:00]} cxd4 {[%emt 0:00:00]} 4. Nxd4 {[%emt 0:00:00]} Nf6 {[%emt 0:00:00]} 5. Nc3 {[%emt 0:00:05]} e5 {[%emt 0:00:00]} 6. Ndb5 {[%emt 0:00:12]} d6 {[%emt 0:00:04]} 7. Bg5 {[%emt 0:00:15]} a6 {[%emt 0:00:04]} 8. Bxf6 {[%emt 0:00:17]} gxf6 {[%emt 0:00:06]} 9. Na3 {[%emt 0:00:09]} b5 {[%emt 0:00:32]} 10. Nd5 {[%emt 0:00:54]} f5 {[%emt 0:00:07]} 11. Bxb5 {[%emt 0:00:57]} axb5 {[%emt 0:00:05]} 12. Nxb5 {[%emt 0:00:10]} Ra4 {[%emt 0:00:18]} 13. b4 {[%emt 0:00:29]} Rxb4 {[%emt 0:00:06]} 14. Nbc7+ {[%emt 0:02:32]} Kd7 {[%emt 0:03:10]} 15. O-O {[%emt 0:00:18]} Qg5 {[%emt 0:07:35]} 16. Rb1 {[%emt 0:10:54]} Rg8 {[%emt 0:01:30]} 17. g3 {[%emt 0:02:20]} Rb7 {[%emt 0:15:20]} 18. Rxb7 {[%emt 0:21:13]} Bxb7 {[%emt 0:00:06]} 19. Qb1 {[%emt 0:02:03]} Nd8 {[%emt 0:05:24]} 20. Qb6 {[%emt 0:19:03]} fxe4 {[%emt 0:05:23]} 21. Rd1 {[%emt 0:04:19]} f5 {[%emt 0:12:31]} 22. Ne3 {[%emt 0:09:44]} f4 {[%emt 0:11:08]} 23. Nc4 {[%emt 0:01:54]} Rg6 {[%emt 0:04:31]} 24. Nb5 {[%emt 0:01:21]} e3 {[%emt 0:06:15]} 25. Ncxd6 {[%emt 0:06:57]} Bxd6 {[%emt 0:05:55]} 26. Qc7+ {[%emt 0:01:44]} Ke8 {[%emt 0:02:23]} 27. Nxd6+ {[%emt 0:01:29]} Rxd6 {[%emt 0:04:07]} 28. Qxd6 {[%emt 0:00:12]} e2 {[%emt 0:05:23]} 29. Qd7+ {[%emt 0:01:55]} Kf8 {[%emt 0:00:04]} 30. Rb1 {[%emt 0:00:49]} f3 {[%emt 0:06:32]} 31. h4 {[%emt 0:00:55]} Qe7 {[%emt 0:01:05]} 32. Qf5+ {[%emt 0:01:52]} Kg8 {[%emt 0:00:52]} 33. Qd3 {[%emt 0:01:32]} e4 {[%emt 0:01:46]} 34. Qc4+ {[%emt 0:00:50]} Qe6 {[%emt 0:00:42]} 35. Qd4 {[%emt 0:01:21]} Nc6 {[%emt 0:01:37]} 36. Qe3 {[%emt 0:00:43]} Qd7 {[%emt 0:02:20]} 37. Kh2 {[%emt 0:00:33]} Ne7 {[%emt 0:00:35]} 38. Qg5+ {[%emt 0:00:58]} Kf7 {[%emt 0:00:34]} 39. Qf4+ {[%emt 0:00:43]} Kg7 {[%emt 0:00:32]} 40. Qg5+ {[%emt 0:00:18]} Kf7 {[%emt 0:00:12]} 41. Qf4+ {[%emt 0:30:31]} Qf5 {[%emt 0:05:45]} 42. Qe3 {[%emt 0:00:00]} Bc8 {[%emt 0:03:44]} 0-1

[Event "Lueneburg Open-A 2019"]
[Site "Lueneburg"]
[Date "2019.08.11"]
[Round "9.35"]
[White "Joppien, Arne"]
[Black "Martinez Martin, David"]
[Result "1-0"]
[ECO "E92"]
[WhiteElo "1940"]
[BlackElo "2388"]
[Annotator "NA"]
[PlyCount "81"]
[EventDate "2019.08.03"]
[EventType "swiss"]
[EventCountry "GER"]
[SourceTitle "playchess.com"]
[Source "ChessBase"]
[SourceQuality "1"]
[TimeControl "40/5400+30:1800+30"]

1. d4 {[%emt 0:00:00]} Nf6 {[%emt 0:00:00]} 2. c4 {[%emt 0:00:00]} g6 {[%emt 0:00:00]} 3. Nc3 {[%emt 0:00:00]} Bg7 {[%emt 0:00:00]} 4. e4 {[%emt 0:00:00]} d6 {[%emt 0:00:13]} 5. Nf3 {[%emt 0:00:36]} O-O {[%emt 0:00:16]} 6. Be2 {[%emt 0:00:11]} e5 {[%emt 0:00:55]} 7. Be3 {[%emt 0:00:15]} Nc6 {[%emt 0:00:33]} 8. h3 {[%emt 0:01:59]} Re8 {[%emt 0:03:45]} 9. d5 {[%emt 0:01:05]} Ne7 {[%emt 0:00:36]} 10. g4 {[%emt 0:00:35]} c6 {[%emt 0:03:24]} 11. Qd2 {[%emt 0:04:45]} a6 {[%emt 0:07:56]} 12. O-O-O {[%emt 0:01:00]} c5 {[%emt 0:01:43]} 13. Bd3 {[%emt 0:01:33]} Bd7 {[%emt 0:02:22]} 14. Ne2 {[%emt 0:00:16]} b5 {[%emt 0:01:24]} 15. Ng3 {[%emt 0:00:09]} bxc4 {[%emt 0:01:35]} 16. Bxc4 {[%emt 0:00:42]} Bb5 {[%emt 0:03:35]} 17. Qc3 {[%emt 0:09:28]} Qd7 {[%emt 0:04:28]} 18. g5 {[%emt 0:00:33]} Nh5 {[%emt 0:01:50]} 19. Nxh5 {[%emt 0:00:09]} gxh5 {[%emt 0:00:35]} 20. Nh4 {[%emt 0:01:45]} Ng6 {[%emt 0:01:16]} 21. Nf5 {[%emt 0:00:35]} Bh8 {[%emt 0:03:51]} 22. Kb1 {[%emt 0:06:04]} Reb8 {[%emt 0:02:22]} 23. Rd2 {[%emt 0:05:34]} Rb7 {[%emt 0:08:41]} 24. Be2 {[%emt 0:02:40]} h4 {[%emt 0:03:49]} 25. Bh5 {[%emt 0:05:23]} Rab8 {[%emt 0:02:04]} 26. Bxg6 {[%emt 0:01:52]} hxg6 {[%emt 0:01:02]} 27. Nxh4 {[%emt 0:01:12]} Rb6 {[%emt 0:04:28]} 28. Nf3 {[%emt 0:11:20]} Bg7 {[%emt 0:01:54]} 29. Ng1 {[%emt 0:05:18]} Bf1 {[%emt 0:04:42]} 30. f3 {[%emt 0:01:57]} Qb7 {[%emt 0:01:00]} 31. Rf2 {[%emt 0:04:02]} Rb5 {[%emt 0:07:35]} 32. Bc1 {[%emt 0:00:47]} f6 {[%emt 0:06:41]} 33. gxf6 {[%emt 0:03:17]} Bxf6 {[%emt 0:01:42]} 34. Rxf1 {[%emt 0:00:52]} Bg5 {[%emt 0:00:43]} 35. Rh2 {[%emt 0:31:36]} Bd8 {[%emt 0:05:21]} 36. Rg2 {[%emt 0:00:00]} Kf7 {[%emt 0:00:21]} 37. f4 {[%emt 0:00:00]} Bf6 {[%emt 0:03:38]} 38. fxe5 {[%emt 0:00:00]} dxe5 {[%emt 0:00:16]} 39. Rgf2 {[%emt 0:00:00]} Rb6 {[%emt 0:02:51]} 40. Bg5 {[%emt 0:00:00]} Rxb2+ {[%emt 0:03:46]} 41. Rxb2 {[%emt 0:12:39]} 1-0

[Event "Lueneburg Open-A 2019"]
[Site "Lueneburg"]
[Date "2019.08.11"]
[Round "9.36"]
[White "Weidenhoefer, Max"]
[Black "Rempe, Jonas"]
[Result "0-1"]
[ECO "C55"]
[WhiteElo "1805"]
[BlackElo "1839"]
[Annotator "NA"]
[PlyCount "79"]
[EventDate "2019.08.03"]
[EventType "swiss"]
[EventCountry "GER"]
[SourceTitle "playchess.com"]
[Source "ChessBase"]
[SourceQuality "1"]
[TimeControl "40/5400+30:1800+30"]

1. e4 {[%emt 0:01:24]} e5 {[%emt 0:00:00]} 2. Nf3 {[%emt 0:00:06]} Nc6 {[%emt 0:00:00]} 3. Bc4 {[%emt 0:00:06]} Nf6 {[%emt 0:00:00]} 4. d3 {[%emt 0:00:04]} Be7 {[%emt 0:00:00]} 5. c3 {[%emt 0:00:21]} O-O {[%emt 0:00:00]} 6. Bb3 {[%emt 0:00:05]} d6 {[%emt 0:00:32]} 7. h3 {[%emt 0:00:52]} Na5 {[%emt 0:01:37]} 8. Bc2 {[%emt 0:01:15]} c5 {[%emt 0:00:24]} 9. O-O {[%emt 0:00:41]} Nc6 {[%emt 0:00:05]} 10. Re1 {[%emt 0:00:56]} h6 {[%emt 0:00:08]} 11. Nbd2 {[%emt 0:01:24]} Be6 {[%emt 0:00:05]} 12. Nf1 {[%emt 0:02:29]} Rc8 {[%emt 0:00:11]} 13. d4 {[%emt 0:03:01]} cxd4 {[%emt 0:00:06]} 14. cxd4 {[%emt 0:00:08]} exd4 {[%emt 0:00:04]} 15. Ba4 {[%emt 0:00:55]} Bd7 {[%emt 0:07:10]} 16. Bxc6 {[%emt 0:05:36]} Bxc6 {[%emt 0:00:32]} 17. Qxd4 {[%emt 0:00:14]} Nd7 {[%emt 0:01:45]} 18. N1d2 {[%emt 0:23:23]} Nb6 {[%emt 0:02:36]} 19. Rb1 {[%emt 0:05:33]} Bf6 {[%emt 0:04:20]} 20. Qe3 {[%emt 0:05:53]} Re8 {[%emt 0:00:27]} 21. Qd3 {[%emt 0:05:55]} Qd7 {[%emt 0:01:26]} 22. Nd4 {[%emt 0:01:22]} d5 {[%emt 0:01:51]} 23. Nxc6 {[%emt 0:01:10]} Qxc6 {[%emt 0:02:24]} 24. Re2 {[%emt 0:03:13]} Be5 {[%emt 0:11:02]} 25. g3 {[%emt 0:07:17]} Qa4 {[%emt 0:11:12]} 26. Nb3 {[%emt 0:04:50]} Qc4 {[%emt 0:04:20]} 27. Qxc4 {[%emt 0:01:27]} dxc4 {[%emt 0:00:16]} 28. Nd2 {[%emt 0:01:24]} Na4 {[%emt 0:04:49]} 29. Nf3 {[%emt 0:02:17]} c3 {[%emt 0:00:28]} 30. Nxe5 {[%emt 0:00:52]} Rxe5 {[%emt 0:00:24]} 31. Rc2 {[%emt 0:04:50]} Rxe4 {[%emt 0:06:05]} 32. f3 {[%emt 0:02:07]} Re1+ {[%emt 0:00:52]} 33. Kf2 {[%emt 0:00:08]} Rh1 {[%emt 0:00:07]} 34. Kg2 {[%emt 0:01:35]} Rd1 {[%emt 0:02:32]} 35. bxc3 {[%emt 0:00:07]} Rxc3 {[%emt 0:01:40]} 36. Rxc3 {[%emt 0:00:12]} Nxc3 {[%emt 0:00:01]} 37. Ra1 {[%emt 0:00:11]} a6 {[%emt 0:01:13]} 38. a3 {[%emt 0:00:21]} Ne2 {[%emt 0:03:01]} 39. Bb2 {[%emt 0:00:12]} Rd2 {[%emt 0:00:06]} 40. Be5 {[%emt 0:16:04]} 0-1

[Event "Lueneburg Open-A 2019"]
[Site "Lueneburg"]
[Date "2019.08.11"]
[Round "9.37"]
[White "Lu, Siyuan"]
[Black "Schwarz, Jochen"]
[Result "1/2-1/2"]
[ECO "B13"]
[WhiteElo "1711"]
[BlackElo "1909"]
[Annotator "NA"]
[PlyCount "20"]
[EventDate "2019.08.03"]
[EventType "swiss"]
[EventCountry "GER"]
[SourceTitle "playchess.com"]
[Source "ChessBase"]
[SourceQuality "1"]
[TimeControl "40/5400+30:1800+30"]

1. e4 {[%emt 0:00:00]} c6 {[%emt 0:00:00]} 2. d4 {[%emt 0:00:00]} d5 {[%emt 0:00:00]} 3. exd5 {[%emt 0:00:54]} cxd5 {[%emt 0:00:00]} 4. Nf3 {[%emt 0:00:30]} Nc6 {[%emt 0:01:24]} 5. Bd3 {[%emt 0:02:17]} Bg4 {[%emt 0:03:15]} 6. c3 {[%emt 0:03:38]} e6 {[%emt 0:04:18]} 7. Bf4 {[%emt 0:07:18]} Bd6 {[%emt 0:02:24]} 8. Bxd6 {[%emt 0:03:30]} Qxd6 {[%emt 0:00:08]} 9. O-O {[%emt 0:01:25]} Nf6 {[%emt 0:01:48]} 10. Nbd2 {[%emt 0:01:32]} O-O {[%emt 0:00:49]} 1/2-1/2